bitfinex-derivatives/quotes_ETHF0:USTF0_20260104
["timestamp","ask_amount","ask_price","bid_price","bid_amount"]
[1767493056102,0.706067,3146.4,3145.2,0.14473861]
[1767493056304,0.706067,3146.6,3145.2,0.14473861]
[1767493056602,0.30388341,3146.9,3145.2,0.14473861]
[1767493057193,0.15896,3146.9,3145.2,0.14473861]
[1767493079433,0.30388341,3146.9,3145.2,0.14473861]
[1767493079635,1.16543133,3146.8,3145.2,0.14473861]
[1767493079835,0.14492341,3146.8,3145.2,0.14473861]
[1767493080238,1.02097783,3146.7,3145.2,0.14473861]
[1767493080536,0.14492341,3146.8,3145.2,0.14473861]
[1767493080733,1.02097706,3146.7,3145.2,0.14473861]
[1767493081039,0.15896,3146.9,3145.2,0.14473861]
[1767493082133,1.02242571,3146.8,3145.2,0.14473861]
[1767493082332,0.15896,3146.9,3145.2,0.14473861]
[1767493082531,1.02242101,3146.8,3145.2,0.14473861]
[1767493082733,0.15896,3146.9,3145.2,0.14473861]
[1767493083036,1.02242094,3146.8,3145.2,0.14473861]
[1767493083334,0.15896,3146.9,3145.2,0.14473861]
[1767493083529,1.02301476,3146.8,3145.2,0.14473861]
[1767493083728,0.15896,3146.9,3145.2,0.14473861]
[1767493083929,1.02329371,3146.8,3145.2,0.14473861]
[1767493084236,0.15896,3146.9,3145.2,0.14473861]
[1767493084438,1.02340948,3146.8,3145.2,0.14473861]
[1767493084640,0.15896,3146.9,3145.2,0.14473861]
[1767493084839,1.02340984,3146.8,3145.2,0.14473861]
[1767493085140,0.15896,3146.9,3145.2,0.14473861]
[1767493085337,1.02357152,3146.8,3145.2,0.14473861]
[1767493085530,0.15896,3146.9,3145.2,0.14473861]
[1767493085730,1.02357115,3146.8,3145.2,0.14473861]
[1767493085927,0.15896,3146.9,3145.2,0.14473861]
[1767493086130,1.02365902,3146.8,3145.2,0.14473861]
[1767493086328,0.15896,3146.9,3145.2,0.14473861]
[1767493086532,1.02385562,3146.8,3145.2,0.14473861]
[1767493086734,0.15896,3146.9,3145.2,0.14473861]
[1767493087028,1.02402742,3146.8,3145.2,0.14473861]
[1767493087232,1.02427636,3146.7,3145.2,0.14473861]
[1767493087441,0.15896,3146.9,3145.2,0.14473861]
[1767493087637,1.02427617,3146.8,3145.2,0.14473861]
[1767493087838,1.02427617,3146.7,3145.2,0.14473861]
[1767493088037,0.15896,3146.9,3145.2,0.14473861]
[1767493088242,1.02068237,3146.8,3145.2,0.14473861]
[1767493088538,1.02068237,3146.7,3145.2,0.14473861]
[1767493088740,0.15896,3146.9,3145.2,0.14473861]
[1767493088944,1.0206783,3146.8,3145.2,0.14473861]
[1767493089138,1.0206783,3146.7,3145.2,0.14473861]
[1767493089338,0.15896,3146.9,3145.2,0.14473861]
[1767493089540,1.02067299,3146.8,3145.2,0.14473861]
[1767493089839,1.02067299,3146.7,3145.2,0.14473861]
[1767493090042,0.15896,3146.9,3145.2,0.14473861]
[1767493090236,1.02067444,3146.8,3145.2,0.14473861]
[1767493090438,1.02067444,3146.7,3145.2,0.14473861]
[1767493090745,0.15896,3146.9,3145.2,0.14473861]
[1767493090946,1.02071094,3146.8,3145.2,0.14473861]
[1767493091243,1.02071094,3146.7,3145.2,0.14473861]
[1767493091444,0.15896,3146.9,3145.2,0.14473861]
[1767493091649,1.02114017,3146.8,3145.2,0.14473861]
[1767493091840,1.02114017,3146.7,3145.2,0.14473861]
[1767493092037,0.15896,3146.9,3145.2,0.14473861]
[1767493092232,1.02114267,3146.8,3145.2,0.14473861]
[1767493092444,1.02114267,3146.7,3145.2,0.14473861]
[1767493092750,0.15896,3146.9,3145.2,0.14473861]
[1767493092941,1.02113908,3146.8,3145.2,0.14473861]
[1767493093141,1.02113908,3146.7,3145.2,0.14473861]
[1767493093447,0.15896,3146.9,3145.2,0.14473861]
[1767493093647,1.02112788,3146.8,3145.2,0.14473861]
[1767493093848,1.02112788,3146.7,3145.2,0.14473861]
[1767493094048,0.15896,3146.9,3145.2,0.14473861]
[1767493094249,1.02112669,3146.8,3145.2,0.14473861]
[1767493094448,1.02112669,3146.7,3145.2,0.14473861]
[1767493094650,0.15896,3146.9,3145.2,0.14473861]
[1767493094950,1.0211248,3146.8,3145.2,0.14473861]
[1767493095149,1.0211248,3146.7,3145.2,0.14473861]
[1767493095350,0.15896,3146.9,3145.2,0.14473861]
[1767493095553,1.02112281,3146.8,3145.2,0.14473861]
[1767493095741,1.02112281,3146.7,3145.2,0.14473861]
[1767493095945,0.15896,3146.9,3145.2,0.14473861]
[1767493096242,1.02112399,3146.8,3145.2,0.14473861]
[1767493096441,1.02112399,3146.7,3145.2,0.14473861]
[1767493096641,0.15896,3146.9,3145.2,0.14473861]
[1767493096843,1.02106459,3146.8,3145.2,0.14473861]
[1767493097043,1.02106459,3146.7,3145.2,0.14473861]
[1767493097341,0.15896,3146.9,3145.2,0.14473861]
[1767493097544,1.02095432,3146.8,3145.2,0.14473861]
[1767493097743,1.02095432,3146.7,3145.2,0.14473861]
[1767493097946,0.15896,3146.9,3145.2,0.14473861]
[1767493098149,1.02097841,3146.8,3145.2,0.14473861]
[1767493098349,1.02097841,3146.7,3145.2,0.14473861]
[1767493098548,0.15896,3146.9,3145.2,0.14473861]
[1767493098749,1.02099991,3146.8,3145.2,0.14473861]
[1767493098945,1.02099991,3146.7,3145.2,0.14473861]
[1767493099150,0.15896,3146.9,3145.2,0.14473861]
[1767493099452,1.02114241,3146.8,3145.2,0.14473861]
[1767493099640,1.02114241,3146.7,3145.2,0.14473861]
[1767493099844,0.15896,3146.9,3145.2,0.14473861]
[1767493100049,1.02114241,3146.8,3145.2,0.14473861]
[1767493100250,1.02114241,3146.7,3145.2,0.14473861]
[1767493100545,0.15896,3146.9,3145.2,0.14473861]
[1767493100744,1.02114876,3146.8,3145.2,0.14473861]
[1767493100952,1.02114876,3146.7,3145.2,0.14473861]
[1767493101155,0.15896,3146.9,3145.2,0.14473861]
[1767493101355,1.0208548,3146.8,3145.2,0.14473861]
[1767493101551,1.0208548,3146.7,3145.2,0.14473861]
[1767493101756,0.15896,3146.9,3145.2,0.14473861]
[1767493101950,1.02085349,3146.8,3145.2,0.14473861]
[1767493102149,1.02085349,3146.7,3145.2,0.14473861]
[1767493102455,0.15896,3146.9,3145.2,0.14473861]
[1767493102657,1.02074984,3146.8,3145.2,0.14473861]
[1767493102857,1.02074984,3146.7,3145.2,0.14473861]
[1767493103150,0.15896,3146.9,3145.2,0.14473861]
[1767493103355,1.02074102,3146.8,3145.2,0.14473861]
[1767493103555,1.02074102,3146.7,3145.2,0.14473861]
[1767493103854,0.1344873,3146.8,3144.6,0.0047738]
[1767493104060,0.70612942,3146.1,3144.6,0.0047738]
[1767493104357,5.57673671,3146.0,3144.6,0.14283517]
[1767493104545,4.556,3146.0,3144.6,0.14283517]
[1767493117162,4.69498125,3146.0,3144.6,0.0047738]
[1767493117365,0.13898125,3145.9,3144.6,0.0047738]
[1767493118570,0.70648014,3145.8,3144.6,0.0047738]
[1767493119669,0.13898125,3145.9,3144.6,0.0047738]
[1767493119872,0.84546139,3145.9,3144.6,0.0047738]
[1767493120567,4.556,3146.0,3144.6,0.71125394]
[1767493122071,4.556,3146.0,3144.7,0.14189243]
[1767493124275,4.556,3146.0,3144.8,0.70648014]
[1767493124571,0.86547014,3146.1,3144.8,0.84837257]
[1767493124776,4.71099,3146.1,3144.8,0.84837257]
[1767493126184,0.15899,3146.1,3144.8,0.84837257]
[1767493126686,0.86547014,3146.1,3144.8,0.14189243]
[1767493129897,0.70648014,3145.9,3144.6,0.0047738]
[1767493130381,0.70648014,3145.7,3144.6,0.0047738]
[1767493132782,1.00446139,3146.0,3144.6,0.0047738]
[1767493132983,0.71125394,3145.6,3144.2,0.00253095]
[1767493133189,0.71125394,3145.6,3144.2,0.14442338]
[1767493133487,0.71125394,3145.6,3144.3,0.70648014]
[1767493133986,0.71125394,3145.6,3144.6,0.0047738]
[1767493134189,0.0047738,3145.6,3144.6,0.0047738]
[1767493137681,6.15902,3145.5,3144.2,0.00253095]
[1767493137881,0.70648014,3145.3,3144.2,0.00253095]
[1767493138683,0.70648014,3145.3,3144.4,0.0047738]
[1767493140693,0.15903,3145.4,3144.4,0.0047738]
[1767493140885,0.70648014,3145.0,3144.4,0.0047738]
[1767493141079,0.70648014,3145.0,3144.4,0.00281189]
[1767493142495,0.70648014,3145.1,3144.4,0.00281189]
[1767493143685,0.15904,3145.2,3144.4,0.00281189]
[1767493143891,0.86552014,3145.2,3144.4,0.00281189]
[1767493146201,0.70648014,3145.0,3144.2,0.00253095]
[1767493147400,0.70648014,3145.0,3144.3,0.0047738]
[1767493148098,0.70648014,3145.0,3144.2,0.00253095]
[1767493148492,0.70648014,3144.7,3143.4,0.13070045]
[1767493149089,0.70648014,3144.7,3143.7,0.0047738]
[1767493149493,4.556,3144.6,3143.7,0.00835604]
[1767493153296,4.556,3144.6,3143.7,0.00705471]
[1767493154103,0.70648014,3144.4,3143.7,0.00705471]
[1767493154303,0.70648014,3144.4,3143.4,0.13070045]
[1767493154602,0.70648014,3144.4,3143.0,0.83718059]
[1767493155207,0.0047738,3144.0,3143.4,0.0047738]
[1767493161313,0.0047738,3144.0,3143.4,0.84195439]
[1767493161515,0.0047738,3144.0,3143.5,0.13070045]
[1767493170520,4.555,3144.4,3143.5,0.13070045]
[1767493171023,0.00294372,3144.7,3143.5,0.13070045]
[1767493171226,4.555,3144.6,3143.5,0.13070045]
[1767493171420,0.0047738,3144.4,3143.5,0.13070045]
[1767493185035,4.559,3144.5,3143.5,0.13070045]
[1767493185439,0.00294372,3144.7,3143.5,0.13070045]
[1767493186337,0.0047738,3144.4,3143.5,0.13070045]
[1767493188941,0.00294372,3144.7,3143.5,0.13070045]
[1767493189136,0.00294372,3144.7,3143.5,0.83774491]
[1767493189342,0.00294372,3144.7,3143.6,0.14248848]
[1767493189741,0.0047738,3144.5,3143.6,0.14248848]
[1767493196348,0.15902,3145.6,3143.9,0.14248848]
[1767493196643,1.01988611,3145.5,3143.9,0.14248848]
[1767493196947,1.01988611,3145.4,3143.9,0.14248848]
[1767493197141,0.15902,3145.6,3143.9,0.14248848]
[1767493197338,1.0196096,3145.5,3143.9,0.14248848]
[1767493197539,1.0196096,3145.4,3143.9,0.14248848]
[1767493197739,0.16150751,3145.6,3143.9,0.14248848]
[1767493197947,1.01961599,3145.5,3143.9,0.14248848]
[1767493198147,1.01961599,3145.4,3143.9,0.14248848]
[1767493198348,0.16150751,3145.6,3143.9,0.14248848]
[1767493198551,1.01943277,3145.5,3143.9,0.14248848]
[1767493198854,0.16150751,3145.6,3143.9,0.14248848]
[1767493199053,0.0047738,3145.0,3143.9,0.14248848]
[1767493200147,0.0047738,3145.0,3144.0,0.13797361]
[1767493200447,0.00248751,3145.6,3144.3,0.13797361]
[1767493203954,4.71498,3146.3,3143.6,4.515]
[1767493203955,4.556,3146.3,3144.5,0.13797361]
[1767493204256,0.25632489,3147.2,3145.1,0.14274741]
[1767493204455,0.25632489,3147.2,3145.5,0.13797361]
[1767493204970,4.481,3147.5,3145.5,0.13797361]
[1767493205160,0.0029367,3147.2,3145.9,0.13797361]
[1767493205951,6.0029367,3147.2,3145.9,0.13797361]
[1767493206859,0.70704446,3147.0,3145.5,0.14126005]
[1767493207858,6.0029367,3147.2,3145.5,0.14126005]
[1767493208458,0.0029367,3147.2,3145.5,0.14126005]
[1767493219983,4.553,3147.1,3145.5,0.14126005]
[1767493228182,1.01396729,3147.0,3145.5,0.14126005]
[1767493228379,4.553,3147.1,3145.5,0.14126005]
[1767493228681,1.01396645,3147.0,3145.5,0.14126005]
[1767493228881,4.553,3147.1,3145.5,0.14126005]
[1767493229077,1.01396646,3147.0,3145.5,0.14126005]
[1767493229283,1.01396646,3146.9,3145.5,0.14126005]
[1767493229580,4.553,3147.1,3145.5,0.14126005]
[1767493229782,1.01489986,3147.0,3145.5,0.14126005]
[1767493229982,1.01489986,3146.9,3145.5,0.14126005]
[1767493230183,4.553,3147.1,3145.5,0.14126005]
[1767493230378,1.014956,3147.0,3145.5,0.14126005]
[1767493230684,1.014956,3146.9,3145.5,0.14126005]
[1767493230884,4.553,3147.1,3145.5,0.14126005]
[1767493231182,1.01495626,3147.0,3145.5,0.14126005]
[1767493231385,1.01495626,3146.9,3145.5,0.14126005]
[1767493231581,0.1618767,3147.2,3145.5,0.14126005]
[1767493231781,4.554,3147.1,3145.8,0.13810994]
[1767493232584,0.0029367,3147.2,3146.2,0.13810994]
[1767493235482,4.386,3147.8,3146.3,0.13810994]
[1767493235787,1.01706932,3147.7,3146.8,0.13810994]
[1767493236089,4.386,3147.8,3146.8,0.13810994]
[1767493236292,1.01659094,3147.7,3146.8,0.13810994]
[1767493236485,0.00316309,3147.7,3146.8,0.13810994]
[1767493247588,0.70549059,3147.5,3146.7,0.0047738]
[1767493249296,6.70549059,3147.5,3146.7,0.0047738]
[1767493251400,6.70549059,3147.5,3146.4,0.13810994]
[1767493252297,6.70549059,3147.5,3146.6,0.00476599]
[1767493253696,0.70549059,3147.5,3146.6,0.14287593]
[1767493259607,0.70549059,3147.3,3146.6,0.14287593]
[1767493260203,0.70549059,3147.1,3146.6,0.00476599]
[1767493260407,0.70549059,3146.9,3146.2,0.13508952]
[1767493261295,0.70549059,3146.9,3146.2,0.13985551]
[1767493261499,0.70549059,3146.7,3146.2,0.00476599]
[1767493262695,0.70549059,3146.9,3146.2,0.00476599]
[1767493263012,0.70549059,3147.1,3146.2,0.00476599]
[1767493263302,4.564,3147.2,3146.2,0.13985551]
[1767493263805,0.70549059,3147.1,3146.2,0.13985551]
[1767493264506,0.70549059,3146.9,3146.2,0.00476599]
[1767493271510,4.565,3146.9,3146.2,0.13985551]
[1767493284025,4.573,3146.8,3146.2,0.13985551]
[1767493289016,0.00474776,3147.3,3146.2,0.13985551]
[1767493289223,5.59352338,3147.2,3146.2,0.13985551]
[1767493289419,1.01752338,3147.1,3146.2,0.13985551]
[1767493294220,4.582,3147.0,3146.2,0.13985551]
[1767493294421,0.00474776,3147.3,3146.2,0.13985551]
[1767493294722,5.59983052,3147.2,3146.2,0.13985551]
[1767493294927,4.582,3147.2,3146.2,0.13985551]
[1767493295125,4.582,3147.1,3146.4,0.13666]
[1767493296029,0.00474776,3147.3,3146.7,0.13666]
[1767493299325,0.00474776,3147.3,3146.9,0.13666]
[1767493299531,4.583,3147.6,3146.9,0.13666]
[1767493300429,4.58776599,3147.6,3146.9,0.13666]
[1767493310736,4.58776599,3147.6,3146.2,0.00476599]
[1767493310936,4.58776599,3147.6,3146.3,0.13666]
[1767493317960,1.0143493,3147.5,3146.2,0.00476599]
[1767493318163,4.58776599,3147.6,3146.2,0.00476599]
[1767493318344,1.01435802,3147.5,3146.2,0.00476599]
[1767493318655,4.58776599,3147.6,3146.2,0.00476599]
[1767493318854,1.01449746,3147.5,3146.2,0.00476599]
[1767493319157,4.58776599,3147.6,3146.2,0.00476599]
[1767493319355,1.01458917,3147.5,3146.2,0.00476599]
[1767493319555,4.58776599,3147.6,3146.2,0.00476599]
[1767493319748,1.01459131,3147.5,3146.2,0.00476599]
[1767493319949,4.58776599,3147.6,3146.2,0.00476599]
[1767493320151,1.01458916,3147.5,3146.2,0.00476599]
[1767493320350,4.58776599,3147.6,3146.2,0.00476599]
[1767493320551,1.01465742,3147.5,3146.2,0.00476599]
[1767493320751,4.58776599,3147.6,3146.2,0.00476599]
[1767493320958,1.01453984,3147.5,3146.2,0.13772533]
[1767493321155,4.58776599,3147.6,3146.2,0.13772533]
[1767493321357,1.01465362,3147.5,3146.2,0.13772533]
[1767493321655,4.58776599,3147.6,3146.2,0.13772533]
[1767493321856,1.01466126,3147.5,3146.2,0.13772533]
[1767493322054,4.58776599,3147.6,3146.2,0.13772533]
[1767493322256,1.0146622,3147.5,3146.2,0.13772533]
[1767493322455,4.58776599,3147.6,3146.2,0.13772533]
[1767493322657,1.01480202,3147.5,3146.2,0.13772533]
[1767493322856,4.58776599,3147.6,3146.2,0.13772533]
[1767493323057,1.01480202,3147.5,3146.2,0.13772533]
[1767493323252,1.01492471,3147.4,3146.2,0.13772533]
[1767493323458,4.58776599,3147.6,3146.2,0.13772533]
[1767493323763,1.01492525,3147.5,3146.2,0.13772533]
[1767493323955,4.58776599,3147.6,3146.2,0.13772533]
[1767493324153,1.01492568,3147.5,3146.2,0.13772533]
[1767493324352,1.01492568,3147.4,3146.2,0.13772533]
[1767493324555,4.58776599,3147.6,3146.2,0.13772533]
[1767493324752,1.0150904,3147.5,3146.2,0.13772533]
[1767493324958,1.0150904,3147.4,3146.2,0.13772533]
[1767493325158,4.58776599,3147.6,3146.2,0.13772533]
[1767493325359,1.01510433,3147.5,3146.2,0.13772533]
[1767493325560,1.01510433,3147.4,3146.2,0.13772533]
[1767493325766,4.58776599,3147.6,3146.2,0.13772533]
[1767493326069,1.0151034,3147.5,3146.2,0.13772533]
[1767493326265,1.0151034,3147.4,3146.2,0.13772533]
[1767493326456,4.58776599,3147.6,3146.2,0.13772533]
[1767493326659,1.01502763,3147.5,3146.2,0.13772533]
[1767493326860,1.01502763,3147.4,3146.2,0.13772533]
[1767493327161,4.58776599,3147.6,3146.2,0.13772533]
[1767493327461,1.01496105,3147.5,3146.2,0.13772533]
[1767493327666,1.01496105,3147.4,3146.2,0.13772533]
[1767493327867,4.58776599,3147.6,3146.2,0.13772533]
[1767493328058,1.01495173,3147.5,3146.2,0.13772533]
[1767493328256,1.01495173,3147.4,3146.2,0.13772533]
[1767493328458,4.58776599,3147.6,3146.2,0.00476599]
[1767493328663,1.01490902,3147.5,3146.2,0.00476599]
[1767493328866,1.01490902,3147.4,3146.2,0.00476599]
[1767493329066,0.86450852,3147.5,3146.2,0.00476599]
[1767493329269,1.01490081,3147.4,3146.2,0.00476599]
[1767493329564,0.15893,3147.4,3146.2,0.00476599]
[1767493329769,1.01487702,3147.3,3146.2,0.00476599]
[1767493329973,1.01478407,3147.2,3146.2,0.00079611]
[1767493330266,1.01457982,3147.1,3146.2,0.00079611]
[1767493330472,0.15893,3147.3,3146.2,0.00079611]
[1767493330673,1.01458436,3147.2,3146.2,0.00079611]
[1767493330864,1.01458436,3147.1,3146.2,0.00079611]
[1767493331064,0.15893,3147.3,3146.2,0.00079611]
[1767493331272,1.01438757,3147.2,3146.2,0.00079611]
[1767493331474,0.15893,3147.3,3146.2,0.13375545]
[1767493345179,1.0152774,3147.2,3146.2,0.13375545]
[1767493345378,0.15893,3147.3,3146.2,0.13375545]
[1767493345572,1.01549344,3147.2,3146.2,0.13375545]
[1767493345772,0.15893,3147.3,3146.2,0.13375545]
[1767493346072,1.01549175,3147.2,3146.2,0.13375545]
[1767493346375,0.15893,3147.3,3146.2,0.13375545]
[1767493346575,1.01574921,3147.2,3146.2,0.13375545]
[1767493346776,0.15893,3147.3,3146.2,0.13375545]
[1767493346977,1.01574904,3147.2,3146.2,0.13375545]
[1767493347176,0.15893,3147.3,3146.2,0.13375545]
[1767493347378,1.01586418,3147.2,3146.2,0.13375545]
[1767493347577,0.15893,3147.3,3146.2,0.13375545]
[1767493347778,1.01586526,3147.2,3146.2,0.13375545]
[1767493347984,0.15893,3147.3,3146.2,0.13375545]
[1767493348184,1.01586526,3147.2,3146.2,0.13375545]
[1767493348382,0.15893,3147.3,3146.2,0.13375545]
[1767493348583,1.01585477,3147.2,3146.2,0.13375545]
[1767493348784,0.15893,3147.3,3146.2,0.13375545]
[1767493348983,1.01585477,3147.2,3146.2,0.13375545]
[1767493349184,0.15893,3147.3,3146.2,0.13375545]
[1767493349485,1.01585867,3147.2,3146.2,0.13375545]
[1767493349685,0.15893,3147.3,3146.2,0.13375545]
[1767493349989,1.01585249,3147.2,3146.2,0.13375545]
[1767493350178,0.15893,3147.3,3146.2,0.13375545]
[1767493350378,1.01585109,3147.2,3146.2,0.13375545]
[1767493350577,0.15893,3147.3,3146.2,0.13375545]
[1767493350883,1.01584978,3147.2,3146.2,0.13375545]
[1767493351086,0.15893,3147.3,3146.2,0.13375545]
[1767493351274,1.01579658,3147.2,3146.2,0.13375545]
[1767493351478,0.15893,3147.3,3146.2,0.13375545]
[1767493351686,1.01575576,3147.2,3146.2,0.13375545]
[1767493351885,0.15893,3147.3,3146.2,0.13375545]
[1767493352185,1.01575524,3147.2,3146.2,0.13375545]
[1767493352386,0.15893,3147.3,3146.2,0.13375545]
[1767493352578,1.01576973,3147.2,3146.2,0.13375545]
[1767493352779,0.15893,3147.3,3146.2,0.13375545]
[1767493352983,1.01576973,3147.2,3146.2,0.13375545]
[1767493353182,0.15893,3147.3,3146.2,0.13375545]
[1767493353388,1.01579209,3147.2,3146.2,0.13375545]
[1767493353577,1.01579209,3147.1,3146.2,0.13375545]
[1767493353777,0.15893,3147.3,3146.2,0.13375545]
[1767493353983,1.0157932,3147.2,3146.2,0.13375545]
[1767493354280,1.0157932,3147.1,3146.2,0.13375545]
[1767493354479,0.15893,3147.3,3146.2,0.13375545]
[1767493354679,1.015818,3147.2,3146.2,0.13375545]
[1767493354882,1.015818,3147.1,3146.2,0.13375545]
[1767493355080,0.15893,3147.3,3146.2,0.13375545]
[1767493355278,1.01584165,3147.2,3146.2,0.13375545]
[1767493355487,1.01584165,3147.1,3146.2,0.13375545]
[1767493355686,0.15893,3147.3,3146.2,0.13375545]
[1767493355887,1.01583841,3147.2,3146.2,0.13375545]
[1767493356089,1.01583841,3147.1,3146.2,0.13375545]
[1767493356280,0.15893,3147.3,3146.2,0.13375545]
[1767493356480,1.01579756,3147.2,3146.2,0.13375545]
[1767493356679,1.01579756,3147.1,3146.2,0.13375545]
[1767493356885,0.15893,3147.3,3146.2,0.13375545]
[1767493357088,1.01579779,3147.2,3146.2,0.13375545]
[1767493357386,1.01579779,3147.1,3146.2,0.13375545]
[1767493357586,0.15893,3147.3,3146.2,0.13375545]
[1767493357790,1.01581814,3147.2,3146.2,0.13375545]
[1767493358083,1.01581814,3147.1,3146.2,0.13375545]
[1767493358289,0.15893,3147.3,3146.2,0.13375545]
[1767493358488,1.01606494,3147.2,3146.2,0.13375545]
[1767493358675,1.01606494,3147.1,3146.2,0.13375545]
[1767493358883,0.15893,3147.3,3146.2,0.13375545]
[1767493359190,1.01606561,3147.2,3146.2,0.13375545]
[1767493359391,1.01606561,3147.1,3146.2,0.13375545]
[1767493359582,0.15893,3147.3,3146.2,0.13375545]
[1767493359784,1.01612663,3147.2,3146.2,0.13375545]
[1767493359979,1.01612663,3147.1,3146.2,0.13375545]
[1767493360182,0.15893,3147.3,3146.2,0.13375545]
[1767493360384,1.01609471,3147.2,3146.2,0.13375545]
[1767493360689,1.01609471,3147.1,3146.2,0.13375545]
[1767493360889,0.15893,3147.3,3146.2,0.13375545]
[1767493361090,1.01592621,3147.2,3146.2,0.13375545]
[1767493361290,1.01592621,3147.1,3146.2,0.13375545]
[1767493361489,0.15893,3147.3,3146.2,0.13375545]
[1767493361677,1.01601526,3147.2,3146.2,0.13375545]
[1767493361882,1.01601526,3147.1,3146.2,0.13375545]
[1767493362084,0.15893,3147.3,3146.2,0.13375545]
[1767493362284,1.01601126,3147.2,3146.2,0.13375545]
[1767493362488,0.70593658,3147.0,3146.2,0.13375545]
[1767493364193,0.70593658,3147.2,3146.2,0.13375545]
[1767493364397,5.60401805,3147.1,3146.2,0.13375545]
[1767493364597,4.588,3147.1,3146.2,0.13375545]
[1767493365084,0.71070257,3147.6,3146.2,0.13375545]
[1767493365281,5.60507878,3147.5,3146.2,0.13375545]
[1767493365486,1.01607878,3147.4,3146.2,0.13375545]
[1767493368195,5.60607878,3147.3,3146.2,0.13375545]
[1767493368386,4.59,3147.3,3146.2,0.13375545]
[1767493368590,0.00476599,3147.6,3146.6,0.14282602]
[1767493374300,4.59876599,3147.6,3146.6,0.14282602]
[1767493384803,0.70593658,3147.5,3146.6,0.14282602]
[1767493385003,0.70593658,3147.2,3146.2,0.13511656]
[1767493400828,0.70593658,3147.0,3146.2,0.13511656]
[1767493411036,0.70593658,3147.1,3146.2,0.13511656]
[1767493414143,0.15892,3147.5,3146.2,0.13511656]
[1767493414333,0.70593658,3147.1,3146.2,0.13511656]
[1767493419037,4.6,3147.3,3146.3,0.13583317]
[1767493419240,0.15892,3147.5,3146.3,0.13583317]
[1767493419241,0.70593658,3147.4,3146.3,0.13583317]
[1767493419442,4.6,3147.3,3146.3,0.13583317]
[1767493421447,0.70593658,3147.2,3146.3,0.13583317]
[1767493424546,4.6,3147.3,3146.3,0.13583317]
[1767493424951,0.00476599,3147.6,3146.3,0.13583317]
[1767493425146,4.605,3147.2,3146.3,0.13583317]
[1767493426148,4.605,3147.2,3146.3,0.13083317]
[1767493428451,4.605,3147.2,3146.3,0.12983317]
[1767493435652,4.605,3147.2,3146.2,0.00079611]
[1767493441264,4.605,3147.2,3146.2,0.13741072]
[1767493441966,0.15893,3147.5,3146.2,0.13741072]
[1767493442168,5.63032273,3147.4,3146.2,0.13741072]
[1767493442471,4.616,3147.4,3146.2,0.13741072]
[1767493443670,4.617,3147.3,3146.2,0.13741072]
[1767493444167,4.617,3147.3,3146.3,0.13661461]
[1767493451066,4.616,3147.3,3146.3,0.13661461]
[1767493451465,4.615,3147.3,3146.3,0.13661461]
[1767493452070,4.614,3147.3,3146.3,0.13661461]
[1767493452770,4.613,3147.3,3146.3,0.13661461]
[1767493453562,4.612,3147.3,3146.3,0.13661461]
[1767493458276,1.0141491,3147.2,3146.2,0.00079611]
[1767493458477,4.612,3147.3,3146.2,0.00079611]
[1767493458674,1.01410702,3147.2,3146.2,0.00079611]
[1767493458875,4.612,3147.3,3146.2,0.00079611]
[1767493459076,1.01410965,3147.2,3146.2,0.00079611]
[1767493459378,4.612,3147.3,3146.2,0.00079611]
[1767493459581,1.01408349,3147.2,3146.2,0.00079611]
[1767493459773,4.612,3147.3,3146.2,0.00079611]
[1767493459974,1.014084,3147.2,3146.2,0.00079611]
[1767493460168,4.612,3147.3,3146.2,0.00079611]
[1767493460462,1.0140708,3147.2,3146.2,0.00079611]
[1767493460661,4.612,3147.3,3146.2,0.00079611]
[1767493460865,1.01406826,3147.2,3146.2,0.00079611]
[1767493461067,4.612,3147.3,3146.2,0.00079611]
[1767493461273,1.01407682,3147.2,3146.2,0.00079611]
[1767493461575,4.612,3147.3,3146.2,0.00079611]
[1767493461876,1.01404688,3147.2,3146.2,0.00079611]
[1767493462076,4.612,3147.3,3146.2,0.00079611]
[1767493462267,1.0140613,3147.2,3146.2,0.00079611]
[1767493462470,4.612,3147.3,3146.2,0.00079611]
[1767493462672,1.01404143,3147.2,3146.2,0.00079611]
[1767493462979,4.612,3147.3,3146.2,0.00079611]
[1767493463165,1.01404351,3147.2,3146.2,0.00079611]
[1767493463368,4.612,3147.3,3146.2,0.00079611]
[1767493463569,1.01400593,3147.2,3146.2,0.00079611]
[1767493463770,4.612,3147.3,3146.2,0.00079611]
[1767493463982,1.01400555,3147.2,3146.2,0.00079611]
[1767493464180,4.612,3147.3,3146.2,0.00079611]
[1767493464388,1.01397693,3147.2,3146.2,0.00079611]
[1767493464679,4.612,3147.3,3146.2,0.00079611]
[1767493464883,1.0137392,3147.2,3146.2,0.00079611]
[1767493465086,4.612,3147.3,3146.2,0.00079611]
[1767493465286,1.01371055,3147.2,3146.2,0.00079611]
[1767493465585,4.612,3147.3,3146.2,0.00079611]
[1767493465885,1.01365457,3147.2,3146.2,0.00079611]
[1767493466086,4.612,3147.3,3146.2,0.00079611]
[1767493466385,1.01358646,3147.2,3146.2,0.00079611]
[1767493466585,4.612,3147.3,3146.2,0.00079611]
[1767493466787,1.01359076,3147.2,3146.2,0.00079611]
[1767493467085,4.612,3147.3,3146.2,0.00079611]
[1767493467281,1.01355839,3147.2,3146.2,0.00079611]
[1767493467486,4.612,3147.3,3146.2,0.00079611]
[1767493467685,1.01355935,3147.2,3146.2,0.00079611]
[1767493467889,4.612,3147.3,3146.2,0.00079611]
[1767493468079,1.01355906,3147.2,3146.2,0.00079611]
[1767493468278,4.612,3147.3,3146.2,0.00079611]
[1767493468483,1.01352555,3147.2,3146.2,0.00079611]
[1767493468678,4.612,3147.3,3146.2,0.00079611]
[1767493468882,1.01352533,3147.2,3146.2,0.00079611]
[1767493469178,4.612,3147.3,3146.2,0.00079611]
[1767493469380,1.01346811,3147.2,3146.2,0.00079611]
[1767493469583,4.612,3147.3,3146.2,0.00079611]
[1767493469782,1.01347025,3147.2,3146.2,0.00079611]
[1767493469982,4.612,3147.3,3146.2,0.00079611]
[1767493470179,1.01347031,3147.2,3146.2,0.00079611]
[1767493470385,4.612,3147.3,3146.2,0.00079611]
[1767493470589,1.01345533,3147.2,3146.2,0.00079611]
[1767493470788,4.612,3147.3,3146.2,0.00079611]
[1767493470991,1.01345423,3147.2,3146.2,0.00079611]
[1767493471284,4.612,3147.3,3146.2,0.00079611]
[1767493471480,1.01332754,3147.2,3146.2,0.00079611]
[1767493471682,4.612,3147.3,3146.2,0.00079611]
[1767493471875,1.01333028,3147.2,3146.2,0.00079611]
[1767493472077,4.612,3147.3,3146.2,0.00079611]
[1767493472280,1.01333261,3147.2,3146.2,0.00079611]
[1767493472584,4.612,3147.3,3146.2,0.00079611]
[1767493472784,1.01324224,3147.2,3146.2,0.00079611]
[1767493472986,4.612,3147.3,3146.2,0.00079611]
[1767493473178,1.01314753,3147.2,3146.2,0.00079611]